fUSD/lending_fUSD_20251212
["ID","MTS","AMOUNT","RATE_DAILY","PERIOD"]
[398330605,1765537967555,-850.56,0.00038904,30]
[398330606,1765537967565,-506.59,0.00038904,30]
[398330607,1765537967574,-2457.1,0.00038904,30]
[398330608,1765537967584,-1824.58,0.00038904,30]
[398330609,1765537967593,-500.0,0.00038904,30]
[398330610,1765537967603,-593.38,0.00038904,30]
[398330611,1765537967613,-500.0,0.00038904,30]
[398330612,1765537967622,-500.0,0.00038904,30]
[398330613,1765537967632,-500.0,0.00038904,30]
[398330614,1765537967641,-500.0,0.00038904,30]
[398330615,1765537967651,-2498.97,0.00038904,30]
[398330616,1765537967660,-937.73,0.00038904,30]
[398330617,1765537967670,-500.0,0.00038904,30]
[398330618,1765537967680,-500.0,0.00038904,30]
[398330619,1765537967690,-500.0,0.00038904,30]
[398330620,1765537967699,-500.0,0.00038904,30]
[398330621,1765537967708,-7728.61,0.00038904,30]
[398330622,1765537967718,-500.0,0.00038904,30]
[398330623,1765537967727,-506.07066391,0.00038904,30]
[398330624,1765537967736,-500.0,0.00038904,30]
[398330625,1765537967745,-500.0,0.00038904,30]
[398330626,1765537967755,-500.0,0.00038904,30]
[398330627,1765537967765,-521.3,0.00038904,30]
[398330628,1765537967774,-5162.44,0.00038904,30]
[398330629,1765537967784,-500.0,0.00038904,30]
[398330630,1765537967794,-2045.54,0.00038904,30]
[398330631,1765537967803,-4512.65,0.00038904,30]
[398330632,1765537967813,-500.0,0.00038904,30]
[398330633,1765537967823,-508.26503492,0.00038904,30]
[398330634,1765537967832,-2044.49,0.00038904,30]
[398330635,1765537967845,-500.0,0.00038904,30]
[398330636,1765537967855,-500.0,0.00038904,30]
[398330637,1765537967864,-803.09,0.00038904,30]
[398330638,1765537967874,-500.0,0.00038904,30]
[398330639,1765537967884,-500.0,0.00038904,30]
[398330640,1765537968053,-500.0,0.00038904,30]
[398330641,1765537968062,-277.62519001,0.00038904,30]
[398330642,1765537968072,-880.62,0.00038904,30]
[398330643,1765537968083,-500.0,0.00038904,30]
[398330644,1765537968092,-1055.54,0.00038904,30]
[398330645,1765537968102,-500.0,0.00038904,30]
[398330646,1765537968112,-1170.58,0.00038904,30]
[398330647,1765537968122,-2563.76,0.00038904,30]
[398330648,1765537968131,-500.0,0.00038904,30]
[398330649,1765537968140,-3132.56,0.00038904,30]
[398330650,1765537968150,-647.8,0.00038904,30]
[398330651,1765537968159,-920.56,0.00038904,30]
[398330652,1765537968168,-500.0,0.00038904,30]
[398330653,1765537968178,-1267.04,0.00038904,30]
[398330654,1765537968187,-500.0,0.00038904,30]
[398330655,1765537968197,-1034.08,0.00038904,30]
[398330656,1765537968206,-500.0,0.00038904,30]
[398330657,1765537968215,-500.0,0.00038904,30]
[398330658,1765537968224,-500.0,0.00038904,30]
[398330659,1765537968234,-407.40347719,0.00038904,30]
[398330660,1765537968243,-500.0,0.00038904,30]
[398330661,1765537968252,-500.0,0.00038904,30]
[398330662,1765537968261,-500.0,0.00038904,30]
[398330663,1765537968271,-500.0,0.00038904,30]
[398330664,1765537968280,-636.17,0.00038904,30]
[398330665,1765537968290,-534.23,0.00038904,30]
[398330666,1765537968299,-500.0,0.00038904,30]
[398330667,1765537968309,-9205.7,0.00038904,30]
[398330668,1765537968318,-2487.95,0.00038904,14]
[398330669,1765537968328,-852.0,0.00038904,30]
[398330670,1765537968337,-1627.24,0.00038904,30]
[398330671,1765537968346,-500.0,0.00038904,30]
[398330672,1765537968355,-500.0,0.00038904,30]
[398330673,1765537968365,-709.82,0.00038904,30]
[398330674,1765537968374,-9937.58,0.00038904,30]
[398330675,1765537968383,-500.0,0.00038904,30]
[398330676,1765537968393,-1228.02,0.00038904,30]
[398330677,1765537968402,-727.84,0.00038904,30]
[398330678,1765537968411,-500.0,0.00038904,30]
[398330679,1765537968421,-500.0,0.00038904,30]
[398330680,1765537968430,-500.0,0.00038904,30]
[398330681,1765537968439,-2584.59,0.00038904,30]
[398330682,1765537968448,-3111.31,0.00038904,30]
[398330683,1765537968457,-938.28,0.00038904,30]
[398330684,1765537968466,-500.0,0.00038904,30]
[398330685,1765537968475,-500.0,0.00038904,30]
[398330686,1765537968484,-500.0,0.00038904,30]
[398330687,1765537968494,-724.94,0.00038904,30]
[398330688,1765537968503,-2254.56,0.00038904,30]
[398330689,1765537968513,-500.0,0.00038904,30]
[398330690,1765537968523,-899.02,0.00038904,30]
[398330691,1765537968531,-922.78,0.00038904,30]
[398330692,1765537968541,-500.0,0.00038904,30]
[398330693,1765537968550,-500.0,0.00038904,30]
[398330694,1765537968560,-500.0,0.00038904,30]
[398330695,1765537968569,-670.8,0.00038904,30]
[398330696,1765537968579,-730.51,0.00038904,30]
[398330697,1765537968588,-500.0,0.00038904,30]
[398330698,1765537968597,-890.92,0.00038904,30]
[398330699,1765537968606,-1306.66,0.00038904,30]
[398330700,1765537968616,-500.0,0.00038904,30]
[398330701,1765537968624,-500.0,0.00038904,30]
[398330702,1765537968634,-500.0,0.00038904,30]
[398330703,1765537968643,-949.39,0.00038904,30]
[398330704,1765537968652,-1193.64,0.00038904,30]
[398330705,1765537968661,-667.64,0.00038904,30]
[398330706,1765537968670,-1105.53,0.00038904,30]
[398330707,1765537968679,-500.03583882,0.00038904,30]
[398330708,1765537968688,-500.0,0.00038904,30]
[398330709,1765537968698,-513.41463543,0.00038904,30]
[398330710,1765537968707,-500.0,0.00038904,30]
[398330711,1765537968716,-500.0,0.00038904,30]
[398330712,1765537968725,-1566.37,0.00038904,30]
[398330713,1765537968734,-691.31,0.00038904,30]
[398330714,1765537968743,-500.0,0.00038904,30]
[398330715,1765537968752,-986.5,0.00038904,30]
[398330716,1765537968761,-2660.16,0.00038904,30]
[398330717,1765537968770,-500.0,0.00038904,30]
[398330718,1765537968779,-677.72,0.00038904,30]
[398330719,1765537968788,-500.0,0.00038904,30]
[398330720,1765537968797,-1062.51,0.00038904,30]
[398330721,1765537968807,-500.0,0.00038904,30]
[398330722,1765537968816,-1023.2,0.00038904,30]
[398330723,1765537968825,-765.14,0.00038904,30]
[398330724,1765537968835,-2249.34,0.00038904,30]
[398330725,1765537968844,-541.12,0.00038904,30]
[398330726,1765537968853,-641.4,0.00038904,30]
[398330727,1765537968863,-500.0,0.00038904,30]
[398330728,1765537968872,-500.0,0.00038904,30]
[398330729,1765537968881,-2149.98,0.00038904,30]
[398330730,1765537968891,-1066.93,0.00038904,30]
[398330731,1765537968900,-500.0,0.00038904,30]
[398330732,1765537968910,-500.0,0.00038904,30]
[398330733,1765537968919,-500.0,0.00038904,30]
[398330734,1765537968929,-500.0,0.00038904,30]
[398330735,1765537968939,-1794.3,0.00038904,30]
[398330736,1765537968948,-500.0,0.00038904,30]
[398330737,1765537968957,-6024.98,0.00038904,30]
[398330738,1765537968967,-500.0,0.00038904,30]
[398330739,1765537968976,-500.0,0.00038904,30]
[398330740,1765537968986,-652.45,0.00038904,30]
[398330741,1765537968995,-584.74,0.00038904,30]
[398330742,1765537969005,-500.0,0.00038904,30]
[398330743,1765537969015,-500.0,0.00038904,30]
[398330744,1765537969025,-500.0,0.00038904,30]
[398330745,1765537969034,-1595.92,0.00038904,30]
[398330746,1765537969044,-920.72,0.00038904,30]
[398330747,1765537969054,-1243.86,0.00038904,30]
[398330748,1765537969063,-500.0,0.00038904,30]
[398330749,1765537969073,-616.65,0.00038904,30]
[398330750,1765537969082,-3185.29,0.00038904,30]
[398330751,1765537969091,-500.0,0.00038904,30]
[398330752,1765537969100,-1899.74,0.00038904,30]
[398330753,1765537969109,-767.47,0.00038904,30]
[398330754,1765537969118,-500.0,0.00038904,30]
[398330755,1765537969127,-500.0,0.00038904,30]
[398330756,1765537969137,-3636.79,0.00038904,30]
[398330757,1765537969147,-1218.06,0.00038904,30]
[398330758,1765537969155,-1283.24,0.00038904,30]
[398330759,1765537969165,-500.0,0.00038904,30]
[398330760,1765537969174,-625.66250597,0.00038904,30]
[398330761,1765537969183,-500.0,0.00038904,30]
[398330762,1765537969192,-500.0,0.00038904,30]
[398330763,1765537969201,-3032.18,0.00038904,30]
[398330764,1765537969211,-500.0,0.00038904,30]
[398330765,1765537969220,-616.0,0.00038904,30]
[398330766,1765537969229,-1329.42,0.00038904,30]
[398330767,1765537969239,-500.0,0.00038904,30]
[398330768,1765537969248,-500.0,0.00038904,30]
[398330769,1765537969257,-638.79,0.00038904,30]
[398330770,1765537969266,-500.0,0.00038904,30]
[398330771,1765537969275,-500.0,0.00038904,30]
[398330772,1765537969284,-500.0,0.00038904,30]
[398330773,1765537969294,-500.0,0.00038904,30]
[398330774,1765537969303,-950.53,0.00038904,30]
[398330775,1765537969312,-664.16,0.00038904,30]
[398330776,1765537969321,-500.0,0.00038904,30]
[398330777,1765537969331,-1066.97,0.00038904,30]
[398330778,1765537969340,-599.13,0.00038904,30]
[398330779,1765537969350,-500.0,0.00038904,30]
[398330780,1765537969359,-500.0,0.00038904,30]
[398330781,1765537969368,-1433.51,0.00038904,30]
[398330782,1765537969378,-241.01382686,0.00038904,30]
[398330783,1765537969387,-6840.01,0.00038904,30]
[398330784,1765537969397,-527.0140392,0.00038904,30]
[398330785,1765537969406,-2849.13,0.00038904,30]
[398330786,1765537969416,-500.0,0.00038904,30]
[398330787,1765537969425,-500.0,0.00038904,30]
[398330788,1765537969434,-500.0,0.00038904,30]
[398330789,1765537969443,-642.56,0.00038904,30]
[398330790,1765537969453,-500.0,0.00038904,30]
[398330791,1765537969462,-500.0,0.00038904,30]
[398330792,1765537969471,-2147.05,0.00038904,30]
[398330793,1765537969481,-500.0,0.00038904,30]
[398330794,1765537969490,-6708.51,0.00038904,30]
[398330795,1765537969499,-500.0,0.00038904,30]
[398330796,1765537969508,-332.3347097,0.00038904,30]
[398330797,1765537969518,-500.0,0.00038904,30]
[398330798,1765537969527,-1746.8,0.00038904,30]
[398330799,1765537969536,-500.0,0.00038904,30]
[398330800,1765537969545,-1135.94,0.00038904,30]
[398330801,1765537969555,-1293.36,0.00038904,30]
[398330802,1765537969564,-500.0,0.00038904,30]
[398330803,1765537969573,-500.0,0.00038904,30]
[398330804,1765537969581,-500.0,0.00038904,30]
[398330805,1765537969590,-500.0,0.00038904,30]
[398330806,1765537969599,-1510.63,0.00038904,30]
[398330807,1765537969609,-500.0,0.00038904,30]
[398330808,1765537969618,-500.0,0.00038904,30]
[398330809,1765537969627,-500.0,0.00038904,30]
[398330810,1765537969636,-911.19,0.00038904,30]
[398330811,1765537969645,-500.0,0.00038904,30]
[398330812,1765537969655,-2130.63,0.00038904,30]
[398330813,1765537969664,-500.0,0.00038904,30]
[398330814,1765537969673,-1011.94,0.00038904,30]
[398330815,1765537969682,-504.10048398,0.00038904,30]
[398330816,1765537969692,-1929.57,0.00038904,30]
[398330817,1765537969702,-1120.09,0.00038904,30]
[398330818,1765537969711,-657.48,0.00038904,30]
[398330819,1765537969720,-732.14,0.00038904,30]
[398330820,1765537969730,-4030.69,0.00038904,30]
[398330821,1765537969740,-500.0,0.00038904,30]
[398330822,1765537969749,-500.0,0.00038904,30]
[398330823,1765537969758,-995.54,0.00038904,30]
[398330824,1765537969768,-1083.81,0.00038904,30]
[398330825,1765537969777,-726.94,0.00038904,30]
[398330826,1765537969785,-3238.19,0.00038904,30]
[398330827,1765537969795,-500.0,0.00038904,30]
[398330828,1765537969804,-2367.27,0.00038904,30]
[398330829,1765537969813,-608.27,0.00038904,30]
[398330830,1765537969822,-500.0,0.00038904,30]
[398330831,1765537969831,-500.0,0.00038904,30]
[398330832,1765537969844,-500.0,0.00038904,30]
[398330833,1765537969853,-583.32,0.00038904,30]
[398330834,1765537969862,-408.60820699,0.00038904,30]
[398330835,1765537969872,-500.0,0.00038904,30]
[398330836,1765537969883,-500.0,0.00038904,30]
[398330837,1765537969892,-625.74,0.00038904,30]
[398330838,1765537969902,-500.0,0.00038904,30]
[398330839,1765537969912,-500.0,0.00038904,30]
[398330840,1765537969923,-500.0,0.00038904,30]
[398330841,1765537969932,-2843.71,0.00038904,30]
[398330842,1765537969941,-1329.63,0.00038904,30]
[398330843,1765537969951,-500.0,0.00038904,30]
[398330844,1765537969961,-605.17,0.00038904,30]
[398330845,1765537969970,-500.0,0.00038904,30]
[398330846,1765537969980,-500.0,0.00038904,30]
[398330847,1765537969989,-677.17,0.00038904,30]
[398330848,1765537969999,-610.47,0.00038904,30]
[398330849,1765537970009,-1219.89,0.00038904,30]
[398330850,1765537970018,-500.0,0.00038904,30]
[398330851,1765537970027,-1003.5,0.00038904,30]
[398330852,1765537970037,-658.88,0.00038904,30]
[398330853,1765537970046,-621.26,0.00038904,30]
[398330854,1765537970056,-500.0,0.00038904,30]
[398330855,1765537970066,-500.0,0.00038904,30]
[398330856,1765537970075,-500.0,0.00038904,30]
[398330857,1765537970085,-500.0,0.00038904,30]
[398330858,1765537970095,-2089.28,0.00038904,30]
[398330859,1765537970104,-500.0,0.00038904,30]
[398330860,1765537970114,-777.33,0.00038904,30]
[398330861,1765537970123,-500.0,0.00038904,30]
[398330862,1765537970133,-500.0,0.00038904,30]
[398330863,1765537970142,-500.0,0.00038904,30]
[398330864,1765537970152,-506.96,0.00038904,30]
[398330865,1765537970162,-600.44,0.00038904,30]
[398330866,1765537970171,-500.0,0.00038904,30]
[398330867,1765537970181,-557.42,0.00038904,30]
[398330868,1765537970190,-500.0,0.00038904,30]
[398330869,1765537970199,-610.54,0.00038904,30]
[398330870,1765537970208,-500.0,0.00038904,30]
[398330871,1765537970217,-516.74,0.00038904,30]
[398330872,1765537970227,-500.0,0.00038904,15]
[398330873,1765537970237,-759.14,0.00038904,30]
[398330874,1765537970246,-571.0,0.00038904,30]
[398330875,1765537970256,-588.85,0.00038904,30]
[398330876,1765537970265,-1161.86,0.00038904,30]
[398330877,1765537970275,-1044.6,0.00038904,30]
[398330878,1765537970284,-552.16071777,0.00038904,30]
[398330879,1765537970293,-2199.62,0.00038904,30]
[398330880,1765537970303,-500.0,0.00038904,30]
[398330881,1765537970312,-500.0,0.00038904,30]
[398330882,1765537970322,-503.79,0.00038904,30]
[398330883,1765537970331,-500.0,0.00038904,30]
[398330884,1765537970341,-500.0,0.00038904,30]
[398330885,1765537970351,-500.0,0.00038904,30]
[398330886,1765537970360,-500.0,0.00038904,30]
[398330887,1765537970369,-500.0,0.00038904,30]
[398330888,1765537970379,-809.01,0.00038904,30]
[398330889,1765537970388,-719.27,0.00038904,30]
[398330890,1765537970397,-500.0,0.00038904,30]
[398330891,1765537970406,-578.6,0.00038904,30]
[398330892,1765537970416,-599.09621722,0.00038904,30]
[398330893,1765537970426,-500.0,0.00038904,30]
[398330894,1765537970435,-2620.34,0.00038904,30]
[398330895,1765537970444,-1731.68,0.00038904,30]
[398330896,1765537970454,-517.1,0.00038904,30]
[398330897,1765537970464,-2018.77,0.00038904,30]
[398330898,1765537970473,-500.0,0.00038904,30]
[398330899,1765537970483,-822.61,0.00038904,30]
[398330900,1765537970492,-500.0,0.00038904,30]
[398330901,1765537970502,-500.0,0.00038904,30]
[398330902,1765537970512,-511.8,0.00038904,30]
[398330903,1765537970521,-161.04494213,0.00038904,30]
[398330904,1765537970531,-500.0,0.00038904,30]
[398330905,1765537970541,-1929.49,0.00038904,30]
[398330906,1765537970551,-1245.76,0.00038904,30]
[398330907,1765537970560,-500.0,0.00038904,30]
[398330908,1765537970570,-500.0,0.00038904,30]
[398330909,1765537970579,-629.76,0.00038904,30]
[398330910,1765537970588,-500.0,0.00038904,30]
[398330911,1765537970598,-500.0,0.00038904,30]
[398330912,1765537970607,-504.87,0.00038904,30]
[398330913,1765537970616,-2747.32,0.00038904,30]
[398330914,1765537970626,-3082.74,0.00038904,30]
[398330915,1765537970635,-500.0,0.00038904,30]
[398330916,1765537970644,-1765.66,0.00038904,30]
[398330917,1765537970654,-992.27,0.00038904,30]
[398330918,1765537970664,-669.73,0.00038904,30]
[398330919,1765537970672,-810.69,0.00038904,30]
[398330920,1765537970681,-1342.66,0.00038904,30]
[398330921,1765537970690,-500.0,0.00038904,30]
[398330922,1765537970700,-500.0,0.00038904,30]
[398330923,1765537970708,-682.03,0.00038904,30]
[398330924,1765537970718,-648.8,0.00038904,30]
[398330925,1765537970726,-1864.3,0.00038904,30]
[398330926,1765537970735,-500.0,0.00038904,30]
[398330927,1765537970744,-500.0,0.00038904,30]
[398330928,1765537970753,-500.0,0.00038904,30]
[398330929,1765537970762,-689.18,0.00038904,30]
[398330930,1765537970771,-598.31,0.00038904,30]
[398330931,1765537970780,-792.27,0.00038904,30]
[398330932,1765537970789,-2535.84,0.00038904,30]
[398330933,1765537970799,-500.0,0.00038904,30]
[398330934,1765537970807,-500.0,0.00038904,30]
[398330935,1765537970816,-500.0,0.00038904,30]
[398330936,1765537970825,-1454.84,0.00038904,30]
[398330937,1765537970833,-500.0,0.00038904,30]
[398330938,1765537970843,-500.0,0.00038904,30]
[398330939,1765537970851,-836.48,0.00038904,30]
[398330940,1765537970860,-716.61,0.00038904,30]
[398330941,1765537970869,-500.0,0.00038904,30]
[398330942,1765537970878,-630.54,0.00038904,30]
[398330943,1765537970887,-542.7,0.00038904,30]
[398330944,1765537970896,-500.0,0.00038904,30]
[398330945,1765537970905,-625.15,0.00038904,30]
[398330946,1765537970914,-2978.69,0.00038904,30]
[398330947,1765537970923,-500.0,0.00038904,30]
[398330948,1765537970932,-500.0,0.00038904,30]
[398330949,1765537970941,-566.99,0.00038904,30]
[398330950,1765537970950,-501.3,0.00038904,30]
[398330951,1765537970959,-500.0,0.00038904,30]
[398330952,1765537970969,-1577.35,0.00038904,30]
[398330953,1765537970978,-500.0,0.00038904,30]
[398330954,1765537970987,-500.0,0.00038904,30]
[398330955,1765537970996,-500.0,0.00038904,30]
[398330956,1765537971006,-500.0,0.00038904,30]
[398330957,1765537971015,-500.0,0.00038904,30]
[398330958,1765537971025,-2248.13,0.00038904,30]
[398330959,1765537971034,-556.61,0.00038904,30]
[398330960,1765537971044,-500.0,0.00038904,30]
[398330961,1765537971053,-500.0,0.00038904,30]
[398330962,1765537971062,-1673.77,0.00038904,30]
[398330963,1765537971072,-500.0,0.00038904,30]
[398330964,1765537971082,-2331.84,0.00038904,30]
[398330965,1765537971092,-1028.79,0.00038904,30]
[398330966,1765537971102,-2147.02,0.00038904,30]
[398330967,1765537971112,-1527.47,0.00038904,30]
[398330968,1765537971121,-500.0,0.00038904,30]
[398330969,1765537971131,-500.28,0.00038904,30]
[398330970,1765537971141,-500.0,0.00038904,30]
[398330971,1765537971151,-1715.19,0.00038904,30]
[398330972,1765537971161,-500.0,0.00038904,30]
[398330973,1765537971170,-594.01,0.00038904,30]
[398330974,1765537971179,-1740.0,0.00038904,30]
[398330975,1765537971188,-567.29,0.00038904,30]
[398330976,1765537971198,-500.0,0.00038904,30]
[398330977,1765537971207,-633.47,0.00038904,30]
[398330978,1765537971216,-2330.09,0.00038904,30]
[398330979,1765537971226,-500.0,0.00038904,30]
[398330980,1765537971236,-1444.41,0.00038904,30]
[398330981,1765537971246,-500.0,0.00038904,30]
[398330982,1765537971255,-500.0,0.00038904,30]
[398330983,1765537971265,-527.63,0.00038904,30]
[398330984,1765537971275,-500.0,0.00038904,30]
[398330985,1765537971285,-563.14,0.00038904,30]
[398330986,1765537971295,-588.23,0.00038904,30]
[398330987,1765537971304,-500.0,0.00038904,30]
[398330988,1765537971313,-500.0,0.00038904,30]
[398330989,1765537971323,-500.0,0.00038904,30]
[398330990,1765537971332,-1747.95,0.00038904,30]
[398330991,1765537971342,-640.20421876,0.00038904,30]
[398330992,1765537971351,-500.0,0.00038904,30]
[398330993,1765537971361,-763.9,0.00038904,30]
[398330994,1765537971370,-500.0,0.00038904,30]
[398330995,1765537971379,-503.90870472,0.00038904,30]
[398330996,1765537971389,-500.0,0.00038904,30]
[398330997,1765537971402,-818.9,0.00038904,30]
[398330998,1765537971412,-972.17,0.00038904,30]
[398330999,1765537971421,-573.6,0.00038904,30]
[398331000,1765537971431,-556.13,0.00038904,30]
[398331001,1765537971440,-451.80022799,0.00038904,30]
[398331002,1765537971450,-666.96,0.00038904,30]
[398331003,1765537971459,-500.0,0.00038904,30]
[398331004,1765537971468,-500.0,0.00038904,30]
[398331005,1765537971478,-500.0,0.00038904,30]
[398331006,1765537971487,-1283.05,0.00038904,30]
[398331007,1765537971497,-500.0,0.00038904,30]
[398331008,1765537971506,-798.2,0.00038904,30]
[398331009,1765537971516,-500.0,0.00038904,30]
[398331010,1765537971526,-500.0,0.00038904,30]
[398331011,1765537971536,-6586.39,0.00038904,30]
[398331012,1765537971545,-989.92,0.00038904,30]
[398331013,1765537971555,-500.0,0.00038904,30]
[398331014,1765537971564,-500.0,0.00038904,30]
[398331015,1765537971573,-502.68,0.00038904,30]
[398331016,1765537971582,-500.0,0.00038904,30]
[398331017,1765537971592,-500.0,0.00038904,30]
[398331018,1765537971602,-500.0,0.00038904,30]
[398331019,1765537971611,-500.0,0.00038904,30]
[398331020,1765537971620,-500.0,0.00038904,30]
[398331021,1765537971630,-709.01,0.00038904,30]
[398331022,1765537971639,-500.0,0.00038904,30]
[398331023,1765537971648,-500.0,0.00038904,30]
[398331024,1765537971657,-589.52,0.00038904,30]
[398331025,1765537971666,-1180.74,0.00038904,30]
[398331026,1765537971676,-529.51,0.00038904,30]
[398331027,1765537971685,-500.0,0.00038904,30]
[398331028,1765537971695,-500.0,0.00038904,30]
[398331029,1765537971705,-500.0,0.00038904,30]
[398331030,1765537971714,-500.0,0.00038904,30]
[398331031,1765537971723,-500.0,0.00038904,30]
[398331032,1765537971733,-500.0,0.00038904,30]
[398331033,1765537971742,-500.0,0.00038904,30]
[398331034,1765537971751,-720.32,0.00038904,30]
[398331035,1765537971760,-509.99,0.00038904,30]
[398331036,1765537971770,-752.38,0.00038904,30]
[398331037,1765537971780,-634.12,0.00038904,30]
[398331038,1765537971789,-500.0,0.00038904,30]
[398331039,1765537971799,-899.81,0.00038904,30]
[398331040,1765537971808,-500.0,0.00038904,30]
[398331041,1765537971818,-500.0,0.00038904,30]
[398331042,1765537971827,-1738.8,0.00038904,30]
[398331043,1765537971837,-500.0,0.00038904,30]
[398331044,1765537971849,-500.0,0.00038904,30]
[398331045,1765537971858,-622.13,0.00038904,30]
[398331046,1765537971867,-500.0,0.00038904,30]
[398331047,1765537971877,-10008.33,0.00038904,30]
[398331048,1765537971886,-500.0,0.00038904,30]
[398331049,1765537971896,-1816.12,0.00038904,30]
[398331050,1765537971906,-1222.19,0.00038904,30]
[398331051,1765537971916,-500.0,0.00038904,30]
[398331052,1765537971926,-853.5,0.00038904,30]
[398331053,1765537971936,-506.67,0.00038904,30]
[398331054,1765537971945,-614.15,0.00038904,30]
[398331055,1765537971955,-500.0,0.00038904,30]
[398331056,1765537971966,-867.61,0.00038904,30]
[398331057,1765537971975,-642.79,0.00038904,30]
[398331058,1765537971985,-500.0,0.00038904,30]
[398331059,1765537971996,-1730.62,0.00038904,30]
[398331060,1765537972006,-500.0,0.00038904,30]
[398331061,1765537972016,-500.0,0.00038904,30]
[398331062,1765537972026,-2044.69,0.00038904,30]
[398331063,1765537972035,-500.0,0.00038904,30]
[398331064,1765537972046,-5043.62,0.00038904,30]
[398331065,1765537972056,-500.0,0.00038904,30]
[398331066,1765537972197,-500.0,0.00038904,30]
[398331067,1765537972208,-506.77869173,0.00038904,30]
[398331068,1765537972217,-1215.55,0.00038904,30]
[398331069,1765537972227,-500.0,0.00038904,30]
[398331070,1765537972236,-613.73171261,0.00038904,30]
[398331071,1765537972246,-500.0,0.00038904,30]
[398331072,1765537972255,-500.0,0.00038904,30]
[398331073,1765537972265,-500.0,0.00038904,30]
[398331074,1765537972274,-1545.49,0.00038904,30]
[398331075,1765537972284,-500.0,0.00038904,30]
[398331076,1765537972294,-660.88,0.00038904,30]
[398331077,1765537972304,-1589.48,0.00038904,30]
[398331078,1765537972313,-628.02,0.00038904,30]
[398331079,1765537972323,-500.0,0.00038904,30]
[398331080,1765537972333,-500.0,0.00038904,30]
[398331081,1765537972343,-626.53,0.00038904,30]
[398331082,1765537972353,-602.06,0.00038904,30]
[398331083,1765537972363,-500.0,0.00038904,30]
[398331084,1765537972372,-840.42,0.00038904,30]
[398331085,1765537972383,-500.0,0.00038904,30]
[398331086,1765537972392,-699.47,0.00038904,30]
[398331087,1765537972401,-905.19,0.00038904,30]
[398331088,1765537972411,-2585.93,0.00038904,30]
[398331089,1765537972421,-752.57,0.00038904,30]
[398331090,1765537972431,-789.34,0.00038904,30]
[398331091,1765537972443,-3440.78,0.00038904,30]
[398331092,1765537972452,-500.0,0.00038904,30]
[398331093,1765537972462,-563.79,0.00038904,30]
[398331094,1765537972472,-500.0,0.00038904,30]
[398331095,1765537972481,-500.0,0.00038904,30]
[398331096,1765537972491,-465.110811,0.00038904,30]
[398331097,1765537972500,-1586.65,0.00038904,30]
[398331098,1765537972516,-500.0,0.00038904,30]
[398331099,1765537972528,-571.37,0.00038904,30]
[398331100,1765537972538,-500.54,0.00038904,30]
[398331101,1765537972547,-500.0,0.00038904,30]
[398331102,1765537972556,-500.0,0.00038904,30]
[398331103,1765537972565,-509.62,0.00038904,30]
[398331104,1765537972575,-669.04,0.00038904,30]